fUST/lending_fUST_20241014
["ID","MTS","AMOUNT","RATE_DAILY","PERIOD"]
[340242553,1728903042018,-500.0,0.00028669,2]
[340242554,1728903042028,-375.2651113,0.00028669,2]
[340242555,1728903042039,-500.0,0.00028669,2]
[340242556,1728903042050,-500.0,0.00028669,2]
[340242557,1728903042061,-500.0,0.00028669,2]
[340242558,1728903042072,-294.17979881,0.00028669,2]
[340242559,1728903042083,-500.0,0.00028669,2]
[340242560,1728903042094,-1557.01,0.00028669,2]
[340242561,1728903042106,-500.0,0.00028669,2]
[340242562,1728903042116,-500.0,0.00028813,5]
[340242563,1728903042126,-151.0,0.00028817,7]
[340242564,1728903042135,-500.0,0.00028942,2]
[340242565,1728903042145,-230.09712883,0.00028943,2]
[340242566,1728903042155,-500.0,0.00028943,2]
[340242567,1728903042165,-287.18189915,0.00028943,2]
[340242568,1728903042176,-500.0,0.00028943,2]
[340242569,1728903042186,-500.0,0.00028943,2]
[340242570,1728903042197,-500.0,0.00028943,2]
[340242571,1728903042207,-500.0,0.00028943,2]
[340242572,1728903042218,-1557.01,0.00028943,2]
[340242573,1728903042229,-500.0,0.00028943,2]
[340242574,1728903042239,-151.0,0.00028983,7]
[340242575,1728903042251,-500.0,0.00028994,2]
[340242576,1728903042262,-500.0,0.00028994,5]
[340242577,1728903042273,-302.75782099,0.00029,2]
[340242578,1728903042283,-302.72757545,0.00029,2]
[340242579,1728903042294,-500.0,0.00029004,5]
[340242580,1728903042304,-502.33255087,0.00029004,5]
[340242581,1728903042315,-154.41383337,0.00029097,2]
[340242582,1728903042327,-269.47553954,0.00029152,2]
[340242583,1728903042338,-500.0,0.00029216,2]
[340242584,1728903042349,-500.0,0.00029217,2]
[340242585,1728903042359,-500.0,0.00029217,2]
[340242586,1728903042369,-500.0,0.00029217,2]
[340242587,1728903042378,-500.0,0.00029217,2]
[340242588,1728903042388,-500.0,0.00029217,2]
[340242589,1728903042398,-1557.01,0.00029217,2]
[340242590,1728903042408,-500.0,0.00029217,2]
[340242591,1728903042418,-151.0,0.00029267,7]
[340242592,1728903042428,-302.75782099,0.0002929,2]
[340242593,1728903042438,-302.72757545,0.0002929,2]
[340242594,1728903042450,-420.0,0.00029399,2]
[340242595,1728903042461,-500.0,0.0002949,2]
[340242596,1728903042471,-500.0,0.00029491,2]
[340242597,1728903042482,-500.0,0.00029491,2]
[340242598,1728903042493,-500.0,0.00029491,2]
[340242599,1728903042505,-500.0,0.00029491,2]
[340242600,1728903042514,-500.0,0.00029491,2]
[340242601,1728903042525,-1557.01,0.00029491,2]
[340242602,1728903042534,-500.0,0.00029491,2]
[340242603,1728903042546,-302.75782099,0.0002958,2]
[340242604,1728903042557,-302.72757545,0.0002958,2]
[340242605,1728903042569,-500.0,0.00029764,2]
[340242606,1728903042581,-500.0,0.00029765,2]
[340242607,1728903042593,-500.0,0.00029765,2]
[340242608,1728903042604,-500.0,0.00029765,2]
[340242609,1728903042615,-500.0,0.00029765,2]
[340242610,1728903042625,-500.0,0.00029765,2]
[340242611,1728903042636,-1557.01,0.00029765,2]
[340242612,1728903042646,-500.0,0.00029765,2]
[340242613,1728903042656,-302.75782099,0.0002987,2]
[340242614,1728903042667,-302.72757545,0.0002987,2]
[340242615,1728903042677,-420.0,0.00029919,2]
[340242616,1728903042687,-150.0,0.0003,120]
[340242617,1728903042697,-605.99665213,0.0003,120]
[340242618,1728903042707,-500.0,0.00030038,2]
[340242619,1728903042717,-494.03,0.00030039,2]
[340242620,1728903042728,-500.0,0.00030039,2]
[340242621,1728903042738,-500.0,0.00030039,2]
[340242622,1728903042748,-500.0,0.00030039,2]
[340242623,1728903042758,-500.0,0.00030039,2]
[340242624,1728903042771,-1557.01,0.00030039,2]
[340242625,1728903042781,-500.0,0.00030039,2]
[340242626,1728903042791,-151.0,0.00030089,7]
[340242627,1728903042802,-500.0,0.00030136,2]
[340242628,1728903042816,-269.47553954,0.00030145,2]
[340242629,1728903042826,-302.75782099,0.0003016,2]
[340242630,1728903042836,-302.72757545,0.0003016,2]
[340242631,1728903042846,-151.0,0.00030177,7]
[340242632,1728903042857,-500.0,0.00030183,5]
[340242633,1728903042867,-500.0,0.00030312,2]
[340242634,1728903042877,-500.0,0.00030313,2]
[340242635,1728903042889,-290.09222791,0.00030313,2]
[340242636,1728903042900,-500.0,0.00030313,2]
[340242637,1728903042910,-500.0,0.00030313,2]
[340242638,1728903042920,-1557.01,0.00030313,2]
[340242639,1728903042930,-500.0,0.00030313,2]
[340242640,1728903042940,-1000.0,0.00030364,2]
[340242641,1728903042951,-4715.254047,0.00030377,2]
[340242642,1728903042961,-154.43,0.000304,31]
[340242643,1728903042971,-154.43,0.000304,31]
[340242644,1728903042981,-154.43,0.000304,31]
[340242645,1728903042993,-154.43,0.000304,31]
[340242646,1728903043003,-154.43,0.000304,31]
[340242647,1728903043014,-454.13673149,0.0003045,4]
[340242648,1728903043025,-454.09136318,0.0003045,4]
[340242649,1728903043035,-500.0,0.00030473,5]
[340242650,1728903043046,-150.0,0.00030513,2]
[340242653,1728903043177,-526.0,0.00030513,2]
[340242654,1728903043191,-1694.0,0.00030513,2]
[340242655,1728903043202,-1157.0,0.00030513,2]
[340242656,1728903043211,-500.0,0.00030586,2]
[340242657,1728903043220,-500.0,0.00030587,2]
[340242658,1728903043230,-500.0,0.00030587,2]
[340242659,1728903043239,-500.0,0.00030587,2]
[340242660,1728903043249,-1557.01,0.00030587,2]
[340242661,1728903043258,-500.0,0.00030587,2]
[340242662,1728903043268,-454.13673149,0.0003074,4]
[340242663,1728903043277,-454.09136318,0.0003074,4]
[340242664,1728903043286,-500.0,0.0003086,2]
[340242665,1728903043295,-500.0,0.00030861,2]
[340242667,1728903043305,-500.0,0.00030861,2]
[340242669,1728903043315,-407.82433817,0.00030861,2]
[340242671,1728903043325,-1557.01,0.00030861,2]
[340242673,1728903043335,-500.0,0.00030861,2]
[340242675,1728903043345,-180.152479,0.00030953,2]
[340242677,1728903043354,-208.746604,0.00030953,2]
[340242679,1728903043364,-197.076164,0.00030953,2]
[340242681,1728903043373,-185.441072,0.00030953,2]
[340242683,1728903043383,-168.69123,0.00030953,2]
[340242685,1728903043393,-454.13673149,0.0003103,4]
[340242687,1728903043401,-454.09136318,0.0003103,4]
[340242689,1728903043411,-500.0,0.00031133,2]
[340242691,1728903043420,-500.0,0.00031135,2]
[340242693,1728903043429,-500.0,0.00031135,2]
[340242695,1728903043438,-1557.01,0.00031135,2]
[340242697,1728903043447,-500.0,0.00031135,2]
[340242699,1728903043457,-269.47553954,0.00031137,2]
[340242701,1728903043467,-151.0,0.00031274,7]
[340242703,1728903043476,-454.13673149,0.0003132,4]
[340242705,1728903043485,-454.09136318,0.0003132,4]
[340242707,1728903043493,-197.076164,0.0003134,2]
[340242709,1728903043503,-500.0,0.00031407,2]
[340242711,1728903043512,-500.0,0.00031409,2]
[340242713,1728903043522,-500.0,0.00031409,2]
[340242715,1728903043531,-1557.01,0.00031409,2]
[340242717,1728903043541,-337.0946854,0.00031409,2]
[340242719,1728903043551,-180.152479,0.00031469,2]
[340242720,1728903043560,-168.69123,0.00031469,2]
[340242721,1728903043569,-454.13673149,0.0003161,4]
[340242722,1728903043579,-454.09136318,0.0003161,4]
[340242723,1728903043589,-500.0,0.00031681,2]
[340242724,1728903043598,-500.0,0.00031683,2]
[340242725,1728903043608,-500.0,0.00031683,2]
[340242726,1728903043617,-1557.01,0.00031683,2]
[340242727,1728903043627,-197.076164,0.00031727,2]
[340242728,1728903043636,-587.0,0.00031777,2]
[340242730,1728903043646,-834.20772272,0.00031855,2]
[340242731,1728903043655,-500.0,0.00031955,2]
[340242733,1728903043665,-500.0,0.00031956,2]
[340242736,1728903043676,-500.0,0.00031956,2]
[340242737,1728903043686,-1557.01,0.00031956,2]
[340242740,1728903043696,-180.152479,0.00031985,2]
[340242742,1728903043706,-168.69123,0.00031985,2]
[340242744,1728903043717,-197.076164,0.00032114,2]
[340242746,1728903043728,-269.47553954,0.0003213,2]
[340242748,1728903043739,-500.0,0.00032229,2]
[340242750,1728903043749,-500.0,0.0003223,2]
[340242752,1728903043760,-500.0,0.0003223,2]
[340242754,1728903043769,-1557.01,0.0003223,2]
[340242756,1728903043778,-1148.68,0.000323,14]
[340242758,1728903043788,-1596.76,0.000323,30]
[340242760,1728903043797,-502.06,0.000323,30]
[340242762,1728903043809,-1500.0,0.00032367,2]
[340242764,1728903043818,-150.112233,0.000324,5]
[340242766,1728903043828,-286.625,0.000325,120]
[340242768,1728903043838,-286.625,0.000325,120]
[340242770,1728903043850,-286.625,0.000325,120]
[340242772,1728903043859,-286.625,0.000325,120]
[340242774,1728903043869,-286.625,0.000325,120]
[340242776,1728903043880,-180.152479,0.00032501,2]
[340242778,1728903043888,-197.076164,0.00032501,2]
[340242780,1728903043897,-168.69123,0.00032501,2]
[340242783,1728903043907,-500.0,0.00032503,2]
[340242786,1728903043916,-185.25,0.00032504,2]
[340242788,1728903043925,-500.0,0.00032504,2]
[340242790,1728903043934,-1557.01,0.00032504,2]
[340242792,1728903043944,-500.0,0.00032777,2]
[340242794,1728903043953,-500.0,0.00032778,2]
[340242796,1728903043962,-1557.01,0.00032778,2]
[340242798,1728903043972,-535.35075836,0.00032877,2]
[340242800,1728903043981,-587.0,0.00032911,2]
[340242802,1728903043991,-581.35600126,0.00032952,2]
[340242804,1728903044002,-199.95656206,0.00032955,10]
[340242806,1728903044012,-11867.26155848,0.00033,15]
[340242808,1728903044022,-445.17848581,0.00033051,2]
[340242810,1728903044031,-500.0,0.00033052,2]
[340242812,1728903044041,-1557.01,0.00033052,2]
[340242814,1728903044051,-251.181126,0.00033201,14]
[340242816,1728903044061,-500.0,0.00033326,2]
[340242818,1728903044071,-1557.01,0.00033326,2]
[340242820,1728903044080,-150.112233,0.000335,5]
[340242822,1728903044090,-1694.0,0.00033513,2]
[340242824,1728903044100,-1157.0,0.00033513,2]
[340242826,1728903044110,-204.70484974,0.000336,2]
[340242828,1728903044121,-1557.05,0.000336,2]
[340242830,1728903044131,-823.0,0.00034348,2]
[340242833,1728903044141,-1148.68,0.000344,30]
[340242835,1728903044150,-1596.76,0.000344,30]
[340242837,1728903044161,-502.06,0.000344,30]
[340242839,1728903044171,-150.112233,0.000346,6]
[340242841,1728903044183,-2000.0,0.00034708,2]
[340242843,1728903044192,-1111.0,0.00034849,120]
[340242845,1728903044202,-158.551404,0.00035151,2]
[340242847,1728903044212,-150.112233,0.000357,9]
[340242849,1728903044223,-5000.0,0.00036,36]
[340242852,1728903044234,-823.0,0.00036202,2]
[340242854,1728903044247,-581.35600121,0.00036313,2]
[340242856,1728903044259,-834.20772272,0.00036511,2]
[340242858,1728903044270,-1694.0,0.00036513,2]
[340242861,1728903044281,-1157.0,0.00036513,2]
[340242863,1728903044290,-500.0,0.00036573,5]
[340242865,1728903044300,-150.112233,0.000368,7]
[340242867,1728903044309,-436.32537738,0.00036822,2]
[340242869,1728903044320,-150.112234,0.00037,8]
[340242871,1728903044329,-1152.0,0.00037126,2]
[340242873,1728903044338,-1596.76,0.000372,30]
[340242875,1728903044350,-1148.68,0.000372,30]
[340242877,1728903044359,-502.06,0.000372,30]
[340242879,1728903044369,-2025.02376877,0.000373,2]
[340242881,1728903044379,-154.43,0.000374,31]
[340242883,1728903044388,-154.43,0.000374,31]
[340242885,1728903044397,-154.43,0.000374,31]
[340242887,1728903044406,-154.43,0.000374,31]
[340242889,1728903044415,-154.43,0.000374,31]
[340242891,1728903044424,-154.43,0.000374,31]
[340242893,1728903044433,-154.43,0.000374,31]
[340242895,1728903044442,-154.43,0.000374,31]
[340242897,1728903044451,-154.43,0.000374,31]
[340242899,1728903044460,-154.43,0.000374,31]
[340242901,1728903044470,-84136.19892451,0.00037754,2]
[340242903,1728903044479,-500.0,0.00037773,5]
[340242905,1728903044489,-500.29325796,0.00037773,5]
[340242907,1728903044499,-500.0,0.00037773,5]
[340242909,1728903044508,-500.0,0.00037773,5]
[340242912,1728903044518,-500.0,0.00037773,5]
[340242914,1728903044528,-500.30125347,0.00037773,5]
[340242916,1728903044537,-150.112233,0.000379,8]
[340242918,1728903044547,-1000.0,0.00037942,5]
[340242920,1728903044557,-5000.0,0.00038,38]
[340242922,1728903044566,-250.0,0.00038,30]
[340242924,1728903044576,-1332.001332,0.00038,7]
[340242926,1728903044586,-150.112233,0.00038,7]
[340242928,1728903044596,-310729.14640386,0.00038135,2]
[340242937,1728903044673,-150.01,0.00027172,2]
[340242939,1728903044682,-183.278394,0.00027347,7]
[340242941,1728903044692,-183.278394,0.00027447,7]
[340242943,1728903044702,-183.278394,0.00027473,7]
[340242945,1728903044712,-69257.44341084,0.00038135,2]
[340242948,1728903044723,-14223.363,0.00038135,2]
[340242950,1728903044734,-14651.73286449,0.00038135,2]
[340243162,1728903078192,158.551404,0.00023836,2]
[340243165,1728903571247,158.551404,0.00023836,2]
[340243167,1728904049038,158.551404,0.00023836,2]
[340243205,1728904231719,-761.27,0.000264,2]
[340243207,1728904231730,-1000.307,0.00027,2]
[340243209,1728904231739,-158.833748,0.000273,7]
[340243211,1728904231753,-1694.0,0.00028609,2]
[340243213,1728904231763,-274.58,0.00028609,2]
[340243215,1728904231775,-300.0,0.00028999,2]
[340243217,1728904231786,-302.72757545,0.00029,2]
[340243219,1728904231796,-302.72757545,0.0002929,2]
[340243221,1728904231806,-300.0,0.00029579,2]
[340243222,1728904231817,-182.11134003,0.0002958,2]
[340243223,1728904231827,-154.48,0.000306,31]
[340243224,1728904231837,-154.48,0.000306,31]
[340243225,1728904231849,-154.48,0.000306,31]
[340243226,1728904231860,-154.41383337,0.00031295,2]
[340243227,1728904231870,-1694.0,0.00031609,2]
[340243228,1728904231882,-420.0,0.00031893,2]
[340243229,1728904231895,-420.0,0.00031899,2]
[340243230,1728904231905,-467.0725132,0.00032877,2]
[340243231,1728904231917,-587.0,0.00034389,2]
[340243232,1728904231929,-1694.0,0.00034609,2]
[340243233,1728904231938,-1111.0,0.00034849,120]
[340243234,1728904231948,-173.043,0.00034997,40]
[340243235,1728904231957,-10000.0,0.00035,30]
[340243236,1728904231967,-587.0,0.00035089,2]
[340243237,1728904231976,-373.46006181,0.00036822,2]
[340243238,1728904231986,-274.53981828,0.000369,2]
[340243239,1728904231997,-500.0,0.00036924,5]
[340243240,1728904232010,-823.0,0.0003708,2]
[340243241,1728904232021,-154.48,0.000375,31]
[340243242,1728904232031,-154.48,0.000375,31]
[340243243,1728904232042,-154.48,0.000375,31]
[340243244,1728904232054,-154.48,0.000375,31]
[340243245,1728904232064,-154.48,0.000375,31]
[340243246,1728904232075,-154.48,0.000375,31]
[340243247,1728904232085,-1694.0,0.00037609,2]
[340243248,1728904232094,-521.3798267,0.00037689,2]
[340243249,1728904232105,-213.17510646,0.00037713,14]
[340243250,1728904232115,-7093.82758318,0.00037713,2]
[340243251,1728904232126,-150.62072916,0.00037789,2]
[340243252,1728904232137,-152.29261661,0.00038,6]
[340243253,1728904232147,-1332.13441236,0.00038,7]
[340243254,1728904232157,-157.75094808,0.00038034,2]
[340243255,1728904232167,-157.75094807,0.00038035,2]
[340243256,1728904232177,-661.67270212,0.00038035,2]
[340243257,1728904232187,-157.75094807,0.00038035,2]
[340243258,1728904232196,-7093.82758319,0.00038039,2]
[340243259,1728904232206,-510.43,0.00038105,10]
[340243260,1728904232216,-425.36,0.00038105,10]
[340243261,1728904232225,-88013.19039415,0.00038115,5]
[340243757,1728904612889,158.551404,0.00023836,2]
[340243768,1728905179405,158.551404,0.00023836,2]
[340243812,1728905439106,-693.71,0.000264,2]
[340243813,1728905439116,-275.48392819,0.00029943,2]
[340243835,1728905719920,158.551404,0.00023836,2]
[340243836,1728906109431,53389.2541234,0.0001,2]
[340243837,1728906228459,158.551404,0.00023836,2]
[340243877,1728906632051,-400.0,0.000264,2]
[340243901,1728906643255,-224.34,0.000264,2]
[340243902,1728906643267,-500.0,0.00028346,2]
[340243903,1728906643278,-1222.66,0.00028348,2]
[340243910,1728906768013,158.551404,0.00023836,2]
[340243915,1728907302537,158.551404,0.00023836,2]
[340244197,1728908919410,201.0,0.00027,120]
[340244253,1728909043560,-561.91,0.000264,2]
[340244254,1728909043570,-514.88865685,0.00028,2]
[340244255,1728909043581,-800.82358293,0.00028301,2]
[340244261,1728909046420,-893.17641707,0.00028301,2]
[340244262,1728909046430,-300.0,0.00028999,2]
[340244263,1728909046440,-300.0,0.00028999,2]
[340244264,1728909046450,-72.11156522,0.00028999,2]
[340244265,1728909046462,-648.1,0.00028999,2]
[340244268,1728909127551,1049.9,0.00027,60]
[340244269,1728909346286,200.0,0.00027,60]
[340244337,1728910232646,-505.71,0.000264,2]
[340244338,1728910232659,-600.8261533,0.00027,2]
[340244339,1728910232668,-200.0,0.00027,2]
[340244340,1728910232678,-250.0,0.00027592,2]
[340244341,1728910232688,-466.78219493,0.00028626,2]
[340244342,1728910232698,-151.0,0.00028627,7]
[340244343,1728910232708,-323.78788,0.00028627,7]
[340244344,1728910232718,-323.78788,0.00028627,7]
[340244345,1728910232729,-300.0,0.00028627,2]
[340244346,1728910232739,-300.0,0.00028627,2]
[340244347,1728910232748,-151.0,0.00028627,7]
[340244348,1728910232758,-151.0,0.00028627,7]
[340244349,1728910232767,-151.0,0.00028628,7]
[340244350,1728910232777,-289.682168,0.00028628,7]
[340244351,1728910232786,-151.0,0.00028628,7]
[340244352,1728910232796,-151.0,0.00028628,7]
[340244353,1728910232805,-151.0,0.00028628,7]
[340244354,1728910232815,-151.0,0.00028628,7]
[340244355,1728910232833,-214.119991,0.00028628,7]
[340244356,1728910232844,-151.0,0.00028628,7]
[340244357,1728910232857,-151.0,0.00028628,7]
[340244358,1728910232866,-151.0,0.00028628,7]
[340244359,1728910232876,-323.78788,0.00028628,7]
[340244360,1728910232885,-323.78788,0.00028628,7]
[340244361,1728910232895,-323.78788,0.00028628,7]
[340244362,1728910232906,-122.56329277,0.00028628,7]
[340244371,1728910238626,-151.0,0.00028627,7]
[340244372,1728910238635,-28.43670723,0.00028628,7]
[340244373,1728910238644,-151.0,0.00028628,7]
[340244374,1728910238657,-317.13905277,0.00028628,7]
[340244438,1728910246616,-6.64882723,0.00028628,7]
[340244440,1728910246625,-323.78788,0.00028628,7]
[340244442,1728910246634,-323.78788,0.00028628,7]
[340244443,1728910246643,-151.0,0.00028628,7]
[340244445,1728910246654,-151.0,0.00028628,7]
[340244446,1728910246664,-212.549556,0.00028628,7]
[340244447,1728910246673,-151.0,0.00028628,7]
[340244448,1728910246682,-151.0,0.00028628,7]
[340244449,1728910246692,-151.0,0.00028628,7]
[340244450,1728910246701,-271.254332,0.00028628,7]
[340244451,1728910246710,-151.0,0.00028629,7]
[340244452,1728910246720,-151.0,0.00028629,7]
[340244453,1728910246730,-151.0,0.00028629,7]
[340244454,1728910246739,-151.0,0.00028629,7]
[340244455,1728910246749,-151.0,0.00028629,7]
[340244456,1728910246758,-151.0,0.00028629,7]
[340244457,1728910246767,-190.504285,0.00028629,7]
[340244458,1728910246776,-151.0,0.00028629,7]
[340244459,1728910246785,-151.0,0.00028629,7]
[340244460,1728910246794,-186.200984,0.00028629,7]
[340244461,1728910246804,-151.0,0.00028629,7]
[340244462,1728910246813,-151.0,0.00028629,7]
[340244463,1728910246823,-151.0,0.00028629,7]
[340244464,1728910246835,-151.0,0.00028629,7]
[340244465,1728910246845,-151.0,0.00028629,7]
[340244466,1728910246855,-151.0,0.00028629,7]
[340244467,1728910246864,-151.0,0.00028629,7]
[340244468,1728910246874,-151.0,0.00028629,7]
[340244469,1728910246885,-151.0,0.00028629,7]
[340244470,1728910246895,-160.612522,0.00028629,7]
[340244471,1728910246906,-323.78788,0.00028629,7]
[340244472,1728910246918,-323.78788,0.00028629,7]
[340244473,1728910246927,-151.0,0.00028629,7]
[340244474,1728910246938,-323.78788,0.00028629,7]
[340244475,1728910246949,-242.37782,0.00028629,7]
[340244476,1728910246959,-323.78788,0.00028629,7]
[340244477,1728910246968,-323.78788,0.00028629,7]
[340244478,1728910246980,-323.78788,0.00028629,7]
[340244479,1728910246989,-323.78788,0.00028629,7]
[340244480,1728910247002,-323.78788,0.00028629,7]
[340244481,1728910247012,-323.78788,0.00028629,7]
[340244482,1728910247021,-323.78788,0.00028629,7]
[340244483,1728910247030,-323.78788,0.00028629,7]
[340244484,1728910247039,-323.787886,0.00028629,7]
[340244485,1728910247048,-151.0,0.00028629,7]
[340244486,1728910247058,-151.0,0.00028629,7]
[340244487,1728910247067,-151.0,0.00028629,7]
[340244488,1728910247077,-151.0,0.00028629,7]
[340244489,1728910247086,-151.0,0.00028629,7]
[340244490,1728910247096,-151.0,0.00028629,7]
[340244491,1728910247105,-151.0,0.00028629,7]
[340244492,1728910247114,-151.0,0.0002863,7]
[340244493,1728910247124,-151.0,0.0002863,7]
[340244494,1728910247133,-232.10766,0.0002863,7]
[340244495,1728910247143,-151.0,0.0002863,7]
[340244496,1728910247153,-151.0,0.0002863,7]
[340244497,1728910247162,-151.0,0.0002863,7]
[340244498,1728910247174,-151.0,0.0002863,7]
[340244499,1728910247185,-151.0,0.0002863,7]
[340244500,1728910247195,-151.0,0.0002863,7]
[340244501,1728910247204,-151.0,0.0002863,7]
[340244502,1728910247213,-151.0,0.0002863,7]
[340244503,1728910247222,-151.0,0.0002863,7]
[340244504,1728910247231,-151.0,0.0002863,7]
[340244505,1728910247241,-151.0,0.0002863,7]
[340244506,1728910247250,-151.0,0.0002863,7]
[340244507,1728910247259,-172.258447,0.0002863,7]
[340244508,1728910247269,-151.0,0.0002863,7]
[340244509,1728910247278,-151.0,0.0002863,7]
[340244510,1728910247288,-151.0,0.0002863,7]
[340244511,1728910247297,-151.0,0.0002863,7]
[340244512,1728910247306,-151.0,0.0002863,7]
[340244513,1728910247315,-151.0,0.0002863,7]
[340244514,1728910247324,-151.0,0.0002863,7]
[340244515,1728910247334,-285.14612,0.0002863,7]
[340244516,1728910247343,-151.0,0.0002863,7]
[340244517,1728910247352,-151.0,0.0002863,7]
[340244518,1728910247362,-151.0,0.0002863,7]
[340244519,1728910247371,-151.0,0.0002863,7]
[340244520,1728910247383,-151.0,0.0002863,7]
[340244521,1728910247392,-151.0,0.0002863,7]
[340244522,1728910247402,-151.0,0.0002863,7]
[340244523,1728910247411,-151.0,0.0002863,7]
[340244524,1728910247421,-151.0,0.0002863,7]
[340244525,1728910247430,-151.0,0.0002863,7]
[340244526,1728910247439,-151.0,0.0002863,7]
[340244527,1728910247448,-151.0,0.0002863,7]
[340244528,1728910247458,-181.954694,0.0002863,7]
[340244529,1728910247468,-151.0,0.0002863,7]
[340244530,1728910247478,-151.0,0.0002863,7]
[340244531,1728910247488,-151.0,0.0002863,7]
[340244532,1728910247498,-151.0,0.0002863,7]
[340244533,1728910247509,-151.0,0.0002863,7]
[340244534,1728910247520,-151.0,0.0002863,7]
[340244535,1728910247531,-151.0,0.0002863,7]
[340244536,1728910247541,-260.808024,0.0002863,7]
[340244537,1728910247550,-1694.0,0.0002863,2]
[340244538,1728910247560,-151.0,0.0002863,7]
[340244539,1728910247569,-151.0,0.0002863,7]
[340244540,1728910247581,-151.0,0.00028898,7]
[340244541,1728910247592,-151.0,0.000289,7]
[340244542,1728910247603,-151.0,0.000289,7]
[340244543,1728910247614,-244.391095,0.000289,7]
[340244544,1728910247625,-151.0,0.000289,7]
[340244545,1728910247636,-465.2338527,0.000289,2]
[340244546,1728910247646,-500.0,0.0002899,7]
[340244547,1728910247658,-151.0,0.00028997,7]
[340244548,1728910247668,-150.01,0.00028998,2]
[340244549,1728910247680,-151.0,0.00028998,7]
[340244550,1728910247690,-151.0,0.00028998,7]
[340244551,1728910247700,-151.0,0.00028998,7]
[340244552,1728910247710,-151.0,0.00028998,7]
[340244553,1728910247719,-151.0,0.00028998,7]
[340244554,1728910247730,-151.0,0.00028998,7]
[340244555,1728910247739,-151.0,0.00028998,7]
[340244556,1728910247748,-151.0,0.00028998,7]
[340244557,1728910247758,-327.9546631,0.00028998,2]
[340244558,1728910247768,-151.0,0.00028999,7]
[340244559,1728910247779,-151.0,0.00028999,7]
[340244560,1728910247789,-214.544131,0.00028999,7]
[340244561,1728910247800,-151.0,0.00028999,7]
[340244562,1728910247811,-151.0,0.00028999,7]
[340244563,1728910247821,-221.409964,0.00028999,7]
[340244564,1728910247831,-255.176517,0.00028999,7]
[340244565,1728910247840,-151.0,0.00028999,7]
[340244566,1728910247849,-151.0,0.00028999,7]
[340244567,1728910247859,-500.0,0.00029,5]
[340244568,1728910247869,-13234.15240443,0.00029,30]
[340244569,1728910475423,1109.5258617,0.00025,120]
[340244572,1728910822401,246.6,0.00027,60]
[340244573,1728911040576,227.37,0.00024,2]
[340244574,1728911089397,167.74,0.00024,2]
[340244603,1728911431757,-455.14,0.000264,2]
[340244604,1728911431768,-1694.0,0.0002863,2]
[340244605,1728911431778,-150.01,0.00028998,2]
[340244606,1728911431788,-300.0,0.00028999,2]
[340244607,1728911431798,-3849.1268,0.00029,30]
[340244672,1728912005801,-409.63,0.000265,2]
[340244673,1728912005827,-150.01,0.00028998,2]
[340244674,1728912005862,-300.0,0.00028999,2]
[340244675,1728912005893,-300.0,0.00028999,2]
[340244676,1728912005919,-6233.06444811,0.00029,30]
[340244677,1728912005949,-302.72757545,0.00029,2]